Cogmind - Beta 17.1 @@@ ROGUE MODE // 2026.09.05 @ 15:12:22 Player: President Manblast Result: Destroyed by P-80 Master with Gamma Rifle Performance ------------- Evolutions (9) 4500 Regions Visited (23) 4600 Robots Destroyed (370) 1850 Value Destroyed (16871) 16871 Prototype IDs (58) 1160 Alien Tech Used (0) 0 Bonus (7198) 7198 TOTAL SCORE: 36179 Bonus ------- High Alert Combat Kills 1631 Follower Combat Kills 953 Hunted by Unchained 500 Entered Garrisons 200 Used RIF Installer 500 Network Hubs Disabled 200 Aligned with FarCom 300 Met Data Miner 300 Built Enhanced Grunts 300 Met R17 at Cetus 500 Met R17 at Research 2000 Friendly Fire -186 Cogmind --------- Core Integrity 0/1600 Matter 88/300 Energy 98/100 System Corruption 49% Temperature Cool (0) Movement Core (50) Location -1/Access Parts ------- > --- POWER (3) -------- (None) > --- PROPULSION (6) --- (None) > --- UTILITY (12) ----- (None) > --- WEAPON (4) ------- (None) > --- INVENTORY (5) ---- Antimatter Reactor Enhanced Nova Cannon Advanced KE Penetrator Improved Plasma Cutter Powered Hammer Peak State ------------ > --- POWER ------------ Particle Reactor Compact Particle Reactor Quantum Reactor > --- PROPULSION ------- Biometal Medium Treads Biometal Medium Treads Centrium Heavy Treads Biometal Heavy Treads > --- UTILITY ---------- Advanced Cooling System Advanced Cooling System Advanced Cooling System Huge Storage Unit Terrain Scan Processor Advanced Targeting Computer Core Analyzer Advanced Transmission Jammer Centrium Medium Armor Plating Centrium Medium Armor Plating Centrium Medium Armor Plating Advanced Force Field > --- WEAPON ----------- Quantum Rifle Neutron Cannon Linear Accelerator Enhanced Hardcell Cannon > --- INVENTORY -------- Antimatter Reactor Antimatter Reactor Armored Medium Treads Advanced Medium Treads Biometal Medium Treads Wheel Advanced Coolant Injector Long-range Terrain Scanner Relay Coupler [NC] Advanced Variable Charge Gun Quantum Rifle Quantum Rifle Compact HERF Cannon Compact HERF Cannon Railgun Railgun Advanced KE Penetrator Gamma Bomb Array Improved Remote Datajack Improved Plasma Cutter Powered Hammer [Rating: 193] Favorites ----------- Power Improved Deuterium Engine Engine Improved Deuterium Engine Power Core Reinforced Fission Core Reactor Light Antimatter Reactor Propulsion Medium Treads Treads Medium Treads Wheel Centrium Wheel Utility Advanced Heat Sink Device Advanced Heat Sink Storage Huge Storage Unit Processor Advanced Targeting Computer Hackware Relay Coupler [NC] Protection Centrium Medium Armor Plating Weapon Improved Assault Rifle Energy Gun Quantum Rifle Energy Cannon Heavy Ion Cannon Ballistic Gun Improved Assault Rifle Ballistic Cannon Improved Light Cannon Launcher Missile Launcher Special Weapon Improved Remote Datajack Impact Weapon Heavy Mace Piercing Weapon Heavy Pick Build | -11 -10 -10 -9 -9 -9 -8 -8 -8 -7 -7 -7 -7 -6 -6 -5 -4 -4 -4 -4 -4 -3 -2 -1 ------- Run | Yrd Mat Min Mat Min Exi Min Mat Gar Fac Low Low Dat Pro Fac Fac Fac Ext Cet Arc Hub Res Res Acc Slots Evolved 18 | . . . 2 . . . 2 . 2 . . . . 2 2 2 . . . . 2 2 2 Power 2 | . . . . . . . . . . . . . . . 1 . . . . . . 1 . Propulsion 4 | . . . . . . . 1 . 1 . . . . . . 1 . . . . 1 . . Utility 10 | . . . 1 . . . 1 . 1 . . . . 2 1 . . . . . 1 1 2 Weapon 2 | . . . 1 . . . . . . . . . . . . 1 . . . . . . . Parts Attached 236 | 8 9 1 17 . . . 19 5 27 4 5 . 3 19 12 15 7 12 10 6 18 5 34 Power 24 | 1 1 1 1 . . . 2 . 2 . . . 1 1 3 3 . 1 1 . 1 2 3 Engine 11 | 1 1 1 1 . . . 2 . 2 . . . 1 1 1 . . . . . . . . Core 4 | . . . . . . . . . . . . . . . 2 2 . . . . . . . Reactor 9 | . . . . . . . . . . . . . . . . 1 . 1 1 . 1 2 3 Propulsion 53 | 2 1 . 5 . . . 7 1 6 . 1 . . 3 2 4 1 2 3 . 6 . 9 Treads 50 | 2 1 . 5 . . . 7 1 6 . 1 . . 3 2 3 . 2 3 . 6 . 8 Leg . | . . . . . . . . . . . . . . . . . . . . . . . . Wheel 3 | . . . . . . . . . . . . . . . . 1 1 . . . . . 1 Hover . | . . . . . . . . . . . . . . . . . . . . . . . . Flight . | . . . . . . . . . . . . . . . . . . . . . . . . Utility 93 | 3 5 . 5 . . . 6 2 10 3 3 . 1 8 6 6 4 3 5 4 8 3 8 Device 45 | 2 3 . 1 . . . 2 . 3 2 2 . . 3 4 3 2 2 4 4 4 2 2 Storage 6 | 1 1 . . . . . 1 . 1 . . . . . 1 . 1 . . . . . . Processor 10 | . . . . . . . 1 . 2 . . . . 2 . . . . 1 . 2 1 1 Hackware 3 | . . . . . . . . . . . . . . 2 . . 1 . . . . . . Protection 29 | . 1 . 4 . . . 2 2 4 1 1 . 1 1 1 3 . 1 . . 2 . 5 Artifact . | . . . . . . . . . . . . . . . . . . . . . . . . Weapon 66 | 2 2 . 6 . . . 4 2 9 1 1 . 1 7 1 2 2 6 1 2 3 . 14 Energy Gun 11 | 1 . . 2 . . . . . . . . . . 1 1 . 1 1 . 1 1 . 2 Energy Cannon 18 | . . . . . . . . 1 4 . 1 . . 5 . 1 . 1 . 1 1 . 3 Ballistic Gun 14 | 1 1 . 4 . . . 1 . 2 . . . . . . . . 2 1 . . . 2 Ballistic Cannon 10 | . . . . . . . 2 . 2 . . . . . . 1 . 1 . . . . 4 Launcher 6 | . . . . . . . . 1 . 1 . . 1 . . . . . . . 1 . 2 Special Weapon 4 | . 1 . . . . . . . . . . . . 1 . . 1 1 . . . . . Impact Weapon 2 | . . . . . . . 1 . 1 . . . . . . . . . . . . . . Slashing Weapon . | . . . . . . . . . . . . . . . . . . . . . . . . Piercing Weapon 1 | . . . . . . . . . . . . . . . . . . . . . . . 1 Special Melee Weapon . | . . . . . . . . . . . . . . . . . . . . . . . . Unidentified Prototypes 10 | . . . 1 . . . . . . 1 . . . 1 . . . 5 . . 1 . 1 Corrupted Parts 3 | . . . . . . . . . . . . . . . . . . . 2 1 . . . System Corruption 6 | . . . . . . . . . . . . . . . . . . . 4 2 . . . Parts Lost 38 | . 2 . . . . . . . 2 1 1 . 1 1 5 . . . . 1 . . 24 Power 7 | . . . . . . . . . 1 . . . . 1 1 . . . . . . . 4 Propulsion 11 | . . . . . . . . . . . 1 . . . 1 . . . . . . . 9 Utility 15 | . 1 . . . . . . . . 1 . . 1 . 2 . . . . 1 . . 9 Weapon 5 | . 1 . . . . . . . 1 . . . . . 1 . . . . . . . 2 Highest Loss Streak 10 | . 1 . . . . . . . 1 1 1 . 1 1 5 . . . . 1 . . 10 To Critical Strikes . | . . . . . . . . . . . . . . . . . . . . . . . . Average Backups 21 | 5 12 15 14 15 15 15 14 15 23 24 24 25 24 24 22 21 22 23 24 24 24 24 21 Power 1 | . 1 1 1 1 1 1 1 1 . 1 1 1 1 . . . 1 2 1 1 1 2 2 Propulsion 3 | 3 3 3 2 3 3 3 2 3 3 4 3 3 3 2 2 2 3 3 3 4 3 3 3 Utility 6 | . 5 5 4 5 5 5 4 5 6 8 9 9 8 10 7 7 8 9 9 8 7 6 3 Weapon 8 | 1 3 5 6 6 6 6 6 6 10 10 10 11 11 10 10 9 8 7 7 9 10 10 10 Tool/Special . | . . . . . . . . . . . . . . . . . . . . . . . . Unused Backups 70 | . 8 . 9 . . . 3 . 12 . 1 . . 5 1 2 1 4 2 5 3 3 11 Power 9 | . 1 . . . . . 1 . . . . . . . . . 1 1 1 1 . . 3 Propulsion 6 | . 3 . . . . . . . . . . . . . . . . . . . . 1 2 Utility 15 | . 3 . 2 . . . . . 1 . 1 . . 4 . 1 . 1 . . 1 . 1 Weapon 39 | . 1 . 7 . . . 2 . 10 . . . . 1 1 1 . 2 1 4 2 2 5 Tool/Special 1 | . . . . . . . . . 1 . . . . . . . . . . . . . . Average Slot Usage (%) 94 | . 99 100 99 100 100 100 99 99 99 99 99 79 99 93 82 84 94 91 89 88 89 90 88 Engine 5 | . 14 14 10 11 11 11 9 9 7 7 7 7 7 6 6 . . . . . . . . Reactor 3 | . . . . . . . . . . . . . . . . 3 5 5 5 8 9 13 11 Treads 21 | . 27 28 22 22 22 22 26 27 30 30 29 30 30 20 10 10 20 17 15 15 19 17 15 Device 16 | . 13 12 10 11 11 11 9 9 15 14 15 15 15 14 18 19 18 21 17 20 20 17 22 Storage 6 | . 14 14 11 11 11 11 9 9 7 7 7 7 7 6 5 5 5 5 5 5 4 4 3 Processor 9 | . . . . . . . 8 9 7 7 7 7 7 18 11 10 10 10 14 10 12 16 11 Protection 6 | . . 1 10 11 11 11 9 9 6 7 7 7 6 5 4 4 5 5 3 5 4 4 8 Energy Gun 2 | . 12 14 2 . . . . . . . . . . 1 2 5 5 4 . . 3 4 4 Energy Cannon 8 | . . . . . . . . 8 8 14 15 2 14 13 13 9 9 6 10 13 9 8 5 Ballistic Gun 6 | . 13 14 25 33 33 33 10 8 5 . . . . . . . . 2 5 1 3 3 . Ballistic Cannon 2 | . . . . . . . 11 7 2 6 6 . 6 1 . 4 1 5 5 4 . . 4 Impact Weapon 1 | . . . . . . . 4 2 4 . . . . 1 . . . . . . . . . Peak Build Rating 193 | 9 8 8 21 21 22 22 34 35 53 56 54 52 53 83 95 113 109 128 124 133 162 173 193 Average Rating 80 | 6 7 8 15 20 20 22 28 33 50 52 52 41 52 67 92 102 103 118 121 125 155 170 174 On Entrance 62 | . 7 8 8 21 20 22 22 34 34 53 53 52 52 53 83 67 104 107 123 122 133 160 171 Avg Prop Armor Cover (%) 13 | . . . . . . . . . . . . . . . . 1 . . . 4 4 7 34 Naked Turns 1 | . . . . . . . . . . . . . . . . . . . . . . . 1 Heaviest Build 213 | 15 30 29 42 42 42 42 45 46 121 121 120 120 121 127 138 166 155 155 152 158 167 188 213 Greatest Support 220 | 40 40 40 40 40 40 40 62 62 112 104 104 96 96 140 140 170 160 180 173 173 220 220 220 Greatest Overweight (x) 1 | . . . 1 1 1 1 . . 1 1 1 1 1 1 1 1 . 1 1 1 1 1 1 Average Overweight (x) . | . . . . 1 1 1 . . . 1 1 1 1 . . . . . . . . . . Largest Inventory Capacity 25 | 8 15 15 15 15 15 15 15 15 25 25 25 25 25 25 25 25 25 25 25 25 25 25 25 Average Capacity 22 | 7 14 15 15 15 15 15 15 15 23 25 25 25 25 25 25 25 25 25 25 25 25 25 24 Most Carried 25 | 8 15 15 15 15 15 15 15 15 25 25 25 25 25 25 25 25 25 25 25 25 25 25 25 Average Carried 21 | 5 12 15 14 15 15 15 14 15 23 24 24 25 24 24 24 22 24 24 24 24 24 24 21 Final Capacity 25 | 8 15 15 15 15 15 15 15 15 25 25 25 25 25 25 25 25 25 25 25 25 25 25 5 Final Carried 25 | 7 15 15 15 15 15 15 15 15 25 25 25 25 24 24 23 25 25 25 24 25 25 25 5 Class Distribution -------------------- 31% | Scavenger-Tank 22% | Tank 20% | Mutant 9% | Gunner 8% | Skirmisher 4% | Scavenger-Skirmisher Dominant Class ---------------- Mutant | -10/Materials Mutant | -10/Mines Scavenger-Tank | -9/Materials Tank | -9/Mines Tank | -9/Exiles Scavenger-Skirmisher | -8/Mines Scavenger-Skirmisher | -8/Materials Skirmisher | -8/Garrison Mutant | -7/Factory Gunner | -7/Lower Caves Gunner | -7/Lower Caves Mutant | -7/Data Miner Gunner | -6/Proximity Caves Tank | -6/Factory Tank | -5/Factory Tank | -4/Factory Scavenger-Tank | -4/Extension Scavenger-Tank | -4/Cetus Scavenger-Tank | -4/Archives Scavenger-Tank | -4/Hub_04(d) Scavenger-Tank | -3/Research Scavenger-Tank | -2/Research Scavenger-Tank | -1/Access Resources | -11 -10 -10 -9 -9 -9 -8 -8 -8 -7 -7 -7 -7 -6 -6 -5 -4 -4 -4 -4 -4 -3 -2 -1 ----------- Run | Yrd Mat Min Mat Min Exi Min Mat Gar Fac Low Low Dat Pro Fac Fac Fac Ext Cet Arc Hub Res Res Acc Matter Collected 9141 | 295 530 75 702 . . . 692 511 991 194 233 . 291 456 265 269 627 298 309 339 378 128 1558 Remotely . | . . . . . . . . . . . . . . . . . . . . . . . . Salvage Created 16833 | 70 707 87 1219 . . . 520 475 1514 507 559 . 471 1566 918 823 770 258 174 1037 624 301 4233 Parts 760 | 13 33 4 73 . . . 49 32 64 13 7 . 9 57 46 35 17 7 14 40 21 10 216 Haulers Intercepted 14 | . 2 . 6 . . . 1 . 2 1 . . . . . . . . . . 1 . 1 Recyclers Shooed 7 | . . . 1 . . . . . 1 . . . . 2 . . . . . . . . 3 Parts Field Recycled 16 | . . . . . . . . . . . . . . . . 16 . . . . . . . Retrieved Matter 239 | . . . . . . . . . . . . . . . . 239 . . . . . . . Parts Self-Destructed 25 | . . . . . . . . . . 13 4 . 8 . . . . . . . . . . Prevented . | . . . . . . . . . . . . . . . . . . . . . . . . Parts Restored . | . . . . . . . . . . . . . . . . . . . . . . . . Kills | -11 -10 -10 -9 -9 -9 -8 -8 -8 -7 -7 -7 -7 -6 -6 -5 -4 -4 -4 -4 -4 -3 -2 -1 ------- Run | Yrd Mat Min Mat Min Exi Min Mat Gar Fac Low Low Dat Pro Fac Fac Fac Ext Cet Arc Hub Res Res Acc Combat Hostiles Destroyed 289 | . 14 2 15 . . . 19 20 19 9 9 . 10 25 27 14 9 5 1 16 9 4 62 Guns 87 | . 14 2 15 . . . 8 7 3 . . . . 6 3 3 3 1 . . . 2 20 Cannons 156 | . . . . . . . 9 8 16 6 6 . 6 16 11 9 6 4 1 12 6 2 38 AOE 35 | . . . . . . . 2 5 . 3 2 . 4 3 13 . . . . . . . 3 Classes Destroyed 21 | 1 6 . 2 . . . 1 1 1 . 1 . 3 . . 1 . . . 2 1 . 1 Worker 17 | . 1 . . . . . . . 3 . . . . 3 1 . . . . 3 . . 6 Builder 10 | . . . . . . . . . . . . . . . . 1 . . . 2 . . 7 Tunneler 5 | 4 1 . . . . . . . . . . . . . . . . . . . . . . Hauler 14 | . 2 . 6 . . . 1 . 2 1 . . . . . . . . . . 1 . 1 Recycler 15 | . 1 . 3 . . . . . 6 . . . . 1 . . 1 . . . . . 3 Operator 5 | . . . 1 . . . . . . . . . . . . . . . 3 1 . . . Watcher 15 | . 1 . 3 . . . . . 1 . . . . 3 1 . 3 1 . 1 . . 1 Swarmer 65 | . 6 . 4 . . . 10 11 . . 4 . . . 16 . 2 . . . . . 12 Cutter 2 | . . . . . . . . . . . . . . . . . . . . 2 . . . Saboteur 1 | . . . . . . . . . . . . . . . . . . . . . . . 1 Grunt 84 | . 8 2 8 . . . 4 6 4 8 3 . 5 16 . 2 4 . . 3 3 . 8 Brawler 5 | . . . . . . . . . . . . . 3 1 . . . . . . . . 1 Duelist 3 | . . . . . . . . . . . . . 1 . 1 1 . . . . . . . Sentry 33 | . . . 3 . . . 3 2 5 1 1 . 1 1 1 1 2 . 1 3 1 3 4 Specialist 3 | . . . . . . . 2 . . . . . . . . . . . . . . 1 . Hunter 14 | . . . . . . . . 1 2 . . . . 2 1 . . . . 1 . . 7 Programmer 66 | . . . . . . . . . 8 . . . . 5 8 10 . . . 6 . . 29 Behemoth 1 | . . . . . . . . . . . . . . . . . . . . 1 . . . Cetus Guard 5 | . . . . . . . . . . . . . . . . . . 5 . . . . . Striker 5 | . . . . . . . . . . . . . . . . . . . . . 5 . . Packrat 3 | . . . . . . . . . . . 3 . . . . . . . . . . . . Samaritan 1 | . . . . . . . . . . . . . 1 . . . . . . . . . . Thug 1 | . . . . . . . . . . . . . . . . . 1 . . . . . . Mutant 1 | . . . . . . . . . . . 1 . . . . . . . . . . . . Best Kill Streak 10 | 2 3 2 6 . . . 7 5 4 5 4 . 4 8 9 5 3 4 2 6 3 1 10 Combat Bots Only 9 | . 3 2 4 . . . 7 5 2 5 4 . 4 4 9 4 3 3 1 4 3 1 5 Max Kills in Single Turn 3 | 1 1 1 2 . . . 2 2 1 3 2 . 3 2 3 2 2 1 1 2 1 1 2 Gunslinging 1 | . . . 1 . . . . . . . . . . . . . . . . . . . . Exploded 3 | . . . . . . . 2 2 . 3 2 . 3 2 3 . . . . . . . 1 Melee . | . . . . . . . . . . . . . . . . . . . . . . . . Uniques/NPCs Destroyed . | . . . . . . . . . . . . . . . . . . . . . . . . Combat | -11 -10 -10 -9 -9 -9 -8 -8 -8 -7 -7 -7 -7 -6 -6 -5 -4 -4 -4 -4 -4 -3 -2 -1 -------- Run | Yrd Mat Min Mat Min Exi Min Mat Gar Fac Low Low Dat Pro Fac Fac Fac Ext Cet Arc Hub Res Res Acc Hostile Shots Fired 1822 | . 70 6 47 . . . 69 77 142 34 68 . 57 94 133 47 53 34 1 68 28 14 780 Missed 531 | . 16 1 14 . . . 18 20 50 12 21 . 19 26 33 10 13 16 . 17 7 5 233 Hits 1291 | . 54 5 33 . . . 51 57 92 22 47 . 38 68 100 37 40 18 1 51 21 9 547 Melee 44 | . . . . . . . . . . . . . 1 . 22 . . . . 2 . . 19 Projectile 1247 | . 54 5 33 . . . 51 57 92 22 47 . 37 68 78 37 40 18 1 49 21 9 528 AOE 6 | . . . . . . . . . . . . . . . 2 . . . . . 2 . 2 Critical Strikes 61 | . . . . . . . 3 1 2 1 . . 3 7 5 3 5 3 . 3 . . 25 Part Disruptions 5 | . . . . . . . . . . . . . . . . 1 . . . . 1 . 3 Damage Taken 23608 | . 536 78 403 . . . 766 653 1285 339 654 . 470 1193 2398 759 705 485 30 1318 654 208 10674 Core 2538 | . 85 14 79 . . . 57 60 134 17 45 . 60 95 111 85 17 25 . 41 . . 1613 Absorbed by Shields 2549 | . . . . . . . . . . . . . . . . . 154 28 . . . 36 2331 Reduced by Siege Mode 1073 | . . . . . . . . . . . . . . 150 344 45 20 . . 44 15 3 452 Redirected to Shielding 114 | . . 3 2 . . . . . . . . . . . . . . . . . . . 109 Regen/Repaired (Parts) 730 | . 116 . 150 . . . 186 . . . . . . . 278 . . . . . . . . Core Remaining (%) 84 | 100 . 60 . . . 80 . 78 . . . . 63 88 88 . . . . 85 100 100 . Volleys Fired 1082 | 7 89 6 104 . . . 31 35 62 17 25 . 17 79 83 68 78 16 10 105 39 19 192 Largest 4 | 2 2 2 3 . . . 3 3 3 3 3 . 3 3 3 4 4 4 4 4 4 4 4 Hottest 383 | 70 100 70 100 . . . 94 129 200 200 200 . 200 240 250 290 262 262 262 332 324 324 383 Shots Fired 2429 | 14 144 12 206 . . . 92 92 178 47 57 . 48 175 149 139 186 60 25 196 107 42 460 Gun 794 | 14 135 12 154 . . . 39 28 49 . . . . 27 22 24 56 19 9 18 41 14 133 Cannon 1521 | . . . . . . . 53 60 129 45 55 . 42 140 116 115 116 41 16 177 66 28 322 Launcher 34 | . . . . . . . . 4 . 2 2 . 6 4 11 . . . . . . . 5 Special 80 | . 9 . 52 . . . . . . . . . . 4 . . 14 . . 1 . . . Kinetic 745 | 7 55 6 131 . . . 92 58 93 12 10 . 11 5 . 22 18 25 13 47 20 7 113 Thermal 1615 | 7 89 6 75 . . . . 30 85 33 45 . 31 162 138 117 154 35 12 148 87 35 326 Explosive 29 | . . . . . . . . 4 . 2 2 . 6 4 11 . . . . . . . . Electromagnetic 21 | . . . . . . . . . . . . . . . . . . . . . . . 21 Robot Hit Streak 47 | 4 16 5 18 . . . 11 15 18 16 27 . 42 47 26 16 31 16 11 11 25 15 31 Robot Miss Streak 5 | 1 4 1 3 . . . 2 3 3 2 1 . 1 3 3 1 5 2 1 3 3 1 4 Penetration Max 1 | . . . . . . . . . . . . . . . . 1 1 . . 1 1 . 1 Secondary Targets 5 | . 1 . 2 . . . . . . . . . . . . . . . . . . . 2 Max Gunslinging Chain 1 | . 1 . 1 . . . . . . . . . . . . . . . . . . . 1 Shots Hit Robots 1366 | 8 88 9 111 . . . 59 58 140 40 43 . 34 98 71 59 86 48 18 74 60 21 241 Core Hits 673 | 5 31 6 48 . . . 28 28 45 16 17 . 23 76 53 27 29 18 8 30 24 11 150 Critical Kills 14 | . 1 . 1 . . . 1 1 . . 1 . . . . 2 . . . 4 3 . . Critical Parts Destroyed 6 | . . . . . . . . . 1 . . . . . . . . . 2 2 1 . . Critical Strikes 52 | . 6 2 2 . . . 1 2 2 3 3 . 2 1 . 3 3 2 2 8 4 . 6 Burn 8 | . 5 2 1 . . . . . . . . . . . . . . . . . . . . Meltdown 10 | . . . . . . . . . . . 1 . . . . 2 . . . 4 3 . . Destroy 10 | . 1 . 1 . . . 1 1 . . . . . . . . . . 2 3 1 . . Blast 22 | . . . . . . . . 1 1 3 2 . 2 1 . 1 3 2 . 1 . . 5 Smash 1 | . . . . . . . . . 1 . . . . . . . . . . . . . . Impale 1 | . . . . . . . . . . . . . . . . . . . . . . . 1 Melee Attacks 125 | . . . . . . . 17 14 56 . 1 . . 31 . . . . . . . . 6 Impact 121 | . . . . . . . 17 14 56 . 1 . . 31 . . . . . . . . 2 Slashing . | . . . . . . . . . . . . . . . . . . . . . . . . Piercing 4 | . . . . . . . . . . . . . . . . . . . . . . . 4 Sneak Attacks 9 | . . . . . . . . . 8 . . . . . . . . . . . . . 1 Combat Hostiles . | . . . . . . . . . . . . . . . . . . . . . . . . Follow-up Attacks . | . . . . . . . . . . . . . . . . . . . . . . . . Damage Inflicted 42747 | 124 1108 94 1389 . . 1 1448 1516 3856 1231 1271 . 1465 3322 3501 2182 1833 1440 542 2844 1864 603 11113 Guns 11595 | 124 1086 94 1384 . . . 515 449 651 . . . . 832 434 550 555 432 136 369 553 190 3241 Cannons 25254 | . . . . . . . 662 729 2564 1023 1127 . 785 2121 1433 1472 1278 1008 406 2386 1299 413 6548 Explosions 4788 | . . . . . . . 267 338 . 208 144 . 680 366 1634 150 . . . . . . 1001 Melee 715 | . . . . . . . . . 603 . . . . . . . . . . . . . 112 Ramming 395 | . 22 . 5 . . 1 4 . 38 . . . . 3 . 10 . . . 89 12 . 211 Kinetic 11899 | 50 378 31 1168 . . . 1177 764 1356 234 178 . 150 99 . 491 487 666 258 933 262 109 3108 Thermal 25170 | 74 708 63 216 . . . 267 414 1859 789 949 . 635 2854 1867 1584 1346 774 284 1822 1590 494 6581 Explosive 3467 | . . . . . . . . 338 . 208 144 . 680 366 1634 97 . . . . . . . Electromagnetic 1101 | . . . . . . . . . . . . . . . . . . . . . . . 1101 Impact 603 | . . . . . . . . . 603 . . . . . . . . . . . . . . Slashing . | . . . . . . . . . . . . . . . . . . . . . . . . Piercing 112 | . . . . . . . . . . . . . . . . . . . . . . . 112 Highest Corruption 48 | . . . . . . . 1 1 4 1 1 1 1 . 3 10 10 10 10 3 . . 48 Average Corruption 6 | . . . . . . . 1 1 1 1 1 1 1 . 1 7 10 10 5 1 . . 16 Corruption Purged 24 | . . . . . . . . . 6 . . . . . 4 . . . 14 . . . . Corruption Blocked . | . . . . . . . . . . . . . . . . . . . . . . . . Effects 417 | . . . . . . . 14 8 35 7 18 1 7 . 15 21 96 37 6 4 . . 148 Message Errors 99 | . . . . . . . 6 3 8 . 1 . 1 . 4 6 21 7 1 . . . 41 Matter Fused 99 | . . . . . . . 2 2 11 4 2 . 1 . 7 7 24 12 1 . . . 26 Heat Flow Errors 47 | . . . . . . . 1 . 5 1 5 . 2 . 1 4 12 1 . . . . 15 Energy Discharges 38 | . . . . . . . 2 3 . . 3 . 1 . . 1 11 4 1 3 . . 9 Parts Fused 3 | . . . . . . . . . . . . . . . . 1 2 . . . . . . Data Loss (minor) 53 | . . . . . . . 1 . 7 1 6 . 1 . . 1 11 7 1 1 . . 16 Data Loss (major) 18 | . . . . . . . . . 1 1 . 1 . . . 1 4 2 1 . . . 7 Misfires 15 | . . . . . . . . . . . 1 . 1 . 1 . 2 . 1 . . . 9 Alerts 8 | . . . . . . . 1 . 1 . . . . . 1 . 1 2 . . . . 2 Misdirections 8 | . . . . . . . . . . . . . . . . . 1 . . . . . 7 Weapon Failures 29 | . . . . . . . 1 . 2 . . . . . 1 . 7 2 . . . . 16 Overload Shots 1 | . . . . . . . . . . . . . . . . 1 . . . . . . . Effects 1 | . . . . . . . . . . . . . . . . 1 . . . . . . . Heat Surge 1 | . . . . . . . . . . . . . . . . 1 . . . . . . . Overflow Damage 966 | . . . . . . . 36 2 240 20 99 . 32 32 73 39 . . . 112 . . 281 Projectiles 568 | . . . . . . . . . 46 20 89 . 14 32 9 39 . . . 108 . . 211 Explosions 134 | . . . . . . . 36 2 . . 10 . 18 . 64 . . . . . . . 4 Melee 264 | . . . . . . . . . 194 . . . . . . . . . . 4 . . 66 Knockbacks 59 | . . . . . . . 1 3 12 1 1 . . . . 5 5 . . 5 . . 26 Impact 2 | . . . . . . . . . 2 . . . . . . . . . . . . . . Kinetic 52 | . . . . . . . 1 2 10 1 1 . . . . 4 5 . . 5 . . 23 Secondary 5 | . . . . . . . . 1 . . . . . . . 1 . . . . . . 3 Self-Inflicted Damage 535 | . . . . . . . 70 . . . . . . 43 138 . . . . . . . 284 Shots 16 | . . . . . . . 1 . . . . . . 1 3 . . . . . . . 11 Rammed 28 | . 3 . 1 . . 1 1 . 4 . . . . 1 . 1 . . . 6 2 . 8 Targets Rammed 32 | . 4 . 1 . . 1 1 . 6 . . . . 1 . 1 . . . 7 2 . 8 Kicked . | . . . . . . . . . . . . . . . . . . . . . . . . Crushed 4 | . 1 . . . . . . . 2 . . . . . . . . . . 1 . . . Highest Temperature 356 | 18 120 145 136 . . . 252 69 161 225 356 . 106 174 302 100 122 . . 38 138 162 197 Average Temperature 54 | 8 32 71 41 . . . 71 15 115 93 159 . 77 73 109 43 47 . . 24 49 77 53 Received Heat Transfer 2569 | . 162 45 147 . . . 171 135 138 183 240 . 210 381 54 36 165 57 . 111 96 . 238 Effects 4 | . . . . . . . . . . . 2 . . . 2 . . . . . . . . Energy Bleed 2 | . . . . . . . . . . . . . . . 2 . . . . . . . . Interference 2 | . . . . . . . . . . . 2 . . . . . . . . . . . . Siege Activations 53 | . . . . . . . . . . . . . . 7 5 3 6 2 1 2 2 4 21 Total Turns 1119 | . . . . . . . . . . . . . . 258 143 40 86 32 8 41 61 70 380 Longest Duration 172 | . . . . . . . . . . . . . . 172 49 18 26 21 8 38 39 42 83 Martial Activations . | . . . . . . . . . . . . . . . . . . . . . . . . Shielding Activations . | . . . . . . . . . . . . . . . . . . . . . . . . Robots Disrupted 1 | . . . . . . . . . . . . . . . . . . . . . . 1 . Combat Hostiles 1 | . . . . . . . . . . . . . . . . . . . . . . 1 . Robots Corrupted 5 | . . . . . . . . . 2 . . . . . . . . . . 1 . . 2 Combat Hostiles 1 | . . . . . . . . . . . . . . . . . . . . . . . 1 Parts Fried 17 | . . . . . . . . . 6 . . . . . . . . . . 3 . . 8 Impact Corruptions 12 | . . . . . . . . . 8 . . . . . . . . . . 1 . . 3 Robots Melted 12 | . . . . . . . . . . 1 2 . . . . 2 . . . 4 3 . . Combat Hostiles 10 | . . . . . . . . . . . 1 . . . . 2 . . . 4 3 . . Parts Melted 83 | . 6 . 1 . . . . . 9 5 2 . 2 16 7 9 3 . . 8 2 . 13 Heat Transferred 31826 | 222 2479 333 618 . . . 150 703 2984 1500 1850 . 1250 4642 2239 1900 2072 999 333 1258 1036 296 4962 Parts Sabotaged . | . . . . . . . . . . . . . . . . . . . . . . . . Parts Stolen . | . . . . . . . . . . . . . . . . . . . . . . . . Parts Stripped . | . . . . . . . . . . . . . . . . . . . . . . . . Power Chain Reactions 3 | . . . . . . . . . . . . . . . . . . . . . . . 3 Alert | -11 -10 -10 -9 -9 -9 -8 -8 -8 -7 -7 -7 -7 -6 -6 -5 -4 -4 -4 -4 -4 -3 -2 -1 ------- Run | Yrd Mat Min Mat Min Exi Min Mat Gar Fac Low Low Dat Pro Fac Fac Fac Ext Cet Arc Hub Res Res Acc Maximum Alert Level 5 | . . . 1 . . . 1 2 1 . . . . 1 2 2 1 2 1 1 1 . 5 Low Security (%) 68 | 100 100 100 80 100 . 100 75 27 72 . . . . 53 57 19 97 60 57 68 95 100 36 Level 1 20 | . . . 19 . . . 24 42 27 . . . . 46 13 56 2 30 42 31 4 . 4 Level 2 5 | . . . . . . . . 29 . . . . . . 29 23 . 9 . . . . 16 Level 3 2 | . . . . . . . . . . . . . . . . . . . . . . . 19 Level 4 2 | . . . . . . . . . . . . . . . . . . . . . . . 22 Level 5 . | . . . . . . . . . . . . . . . . . . . . . . . . High Security . | . . . . . . . . . . . . . . . . . . . . . . . . Max Security . | . . . . . . . . . . . . . . . . . . . . . . . . Peak Influence 1676 | 10 111 50 313 114 . . 355 626 382 . . . . 320 628 436 205 424 313 318 211 108 1676 Initial 328 | . . . . 114 . . . 91 328 . . . . 2 153 296 191 108 155 10 81 108 16 Average 175 | 1 22 6 78 57 . . 99 347 114 . . . . 149 195 316 61 200 175 135 26 25 593 Influence Increases 11646 | 20 427 50 617 . . . 700 535 747 195 180 . 220 899 1003 560 677 752 230 741 301 181 2611 Destroy 0b10 Robot/C 6120 | . 280 40 300 . . . 380 400 380 180 160 . 200 500 540 280 280 300 80 320 180 80 1240 Destroy 0b10 Robot/NC 410 | 20 30 . 65 . . . 5 . 60 5 . . . 35 10 5 20 10 15 35 5 . 90 Destroy Leader 1254 | . 66 10 108 . . . 82 30 166 10 20 . 20 126 112 70 36 20 . 82 32 30 234 Allied During Kill 433 | . . . . . . . . . . . . . . . . . 55 283 95 . . . . Successful Hack 281 | . 14 . 19 . . . 26 . 52 . . . . 19 33 . 27 . . 5 . 14 72 Select Force Hacks 20 | . . . . . . . . . . . . . . . 20 . . . . . . . . Disable Machine 585 | . . . . . . . 60 . 45 . . . . 90 30 135 15 30 30 90 15 . 45 Destroy Structure 1748 | . 7 . 50 . . . 72 60 44 . . . . 69 198 70 214 94 10 164 54 57 585 Partial Spotted 15 | . . . . . . . . . . . . . . . . . . . . 15 . . . Lose Combat Pursuer 780 | . 30 . 75 . . . 75 45 . . . . . 60 60 . 30 15 . 30 15 . 345 Influence Decreases 9990 | 20 427 50 324 293 . . 560 49 991 486 271 . 216 589 711 774 874 559 587 617 263 345 984 Entered New Map 1874 | . . . . 179 . . . 49 298 142 19 . . 2 161 310 201 87 233 21 74 85 13 Time Decay 7030 | 20 411 50 324 114 . . 410 . 683 334 242 . 206 427 500 464 503 392 334 436 189 260 731 Lost Part 366 | . 16 . . . . . . . 10 10 10 . 10 10 50 . . . . 10 . . 240 Lost Ally 120 | . . . . . . . . . . . . . . . . . 20 80 20 . . . . Purge Threat 600 | . . . . . . . 150 . . . . . . 150 . . 150 . . 150 . . . Squads Dispatched 69 | . 2 . 2 . . . 4 . 12 . . . . 10 6 4 . . . 4 8 2 15 Investigation 8 | . 1 . . . . . . . 1 . . . . 4 2 . . . . . . . . Extermination 34 | . . . . . . . . . 8 . . . . 5 3 3 . . . 3 . 1 11 Reinforcement 23 | . 1 . 2 . . . 3 . 3 . . . . 1 . 1 . . . 1 8 1 2 Assault 3 | . . . . . . . . . . . . . . . 1 . . . . . . . 2 Garrison 1 | . . . . . . . 1 . . . . . . . . . . . . . . . . Intercept . | . . . . . . . . . . . . . . . . . . . . . . . . Searches Triggered . | . . . . . . . . . . . . . . . . . . . . . . . . Unchained Authorized 1 | . . . . . . . . . . . . . . . . . 1 . . . . . . Data Miner Redirects 2 | . . . . . . . . . . . . . . 1 . . . . . . . . 1 Construction Impeded 2 | . . . . . . . . . 1 . . . . . . . . . . . . . 1 Haulers Reinforced 4 | . . . . . . . . . 1 . . . . . . . . . . . 2 . 1 Active Scanning Responses . | . . . . . . . . . . . . . . . . . . . . . . . . Cargo Convoy Interrupts . | . . . . . . . . . . . . . . . . . . . . . . . . Stealth | -11 -10 -10 -9 -9 -9 -8 -8 -8 -7 -7 -7 -7 -6 -6 -5 -4 -4 -4 -4 -4 -3 -2 -1 --------- Run | Yrd Mat Min Mat Min Exi Min Mat Gar Fac Low Low Dat Pro Fac Fac Fac Ext Cet Arc Hub Res Res Acc Distress Signals 24 | . 2 . 6 . . . 1 . . . . . . 1 . . 1 2 . 3 4 . 4 Communications Jammed 192 | . . . . . . . . . . . . . . . 59 2 6 . . 56 2 . 67 Distress Signals 189 | . . . . . . . . . . . . . . . 59 2 6 . . 56 . . 66 Times Spotted 446 | . 28 1 31 . . . 23 23 28 9 9 . 10 32 37 15 18 18 5 29 18 2 110 Peak Tracking Total 18 | . 3 1 4 . . . 5 4 2 5 4 . 4 5 11 3 5 7 1 5 3 1 18 Tactical Retreats 34 | . 2 . 5 . . . 4 3 . . . . . 3 2 . 2 1 . 2 1 . 9 Traps | -11 -10 -10 -9 -9 -9 -8 -8 -8 -7 -7 -7 -7 -6 -6 -5 -4 -4 -4 -4 -4 -3 -2 -1 ------- Run | Yrd Mat Min Mat Min Exi Min Mat Gar Fac Low Low Dat Pro Fac Fac Fac Ext Cet Arc Hub Res Res Acc Traps Triggered 17 | . . . . . . . 3 1 4 . . . . 1 . 2 . . . 1 . 2 3 Indirectly . | . . . . . . . . . . . . . . . . . . . . . . . . Trap Hack Attempts . | . . . . . . . . . . . . . . . . . . . . . . . . Triggered . | . . . . . . . . . . . . . . . . . . . . . . . . Disarmed . | . . . . . . . . . . . . . . . . . . . . . . . . Reprogrammed . | . . . . . . . . . . . . . . . . . . . . . . . . Reused . | . . . . . . . . . . . . . . . . . . . . . . . . Traps Extracted . | . . . . . . . . . . . . . . . . . . . . . . . . Installed . | . . . . . . . . . . . . . . . . . . . . . . . . Triggered . | . . . . . . . . . . . . . . . . . . . . . . . . Machines | -11 -10 -10 -9 -9 -9 -8 -8 -8 -7 -7 -7 -7 -6 -6 -5 -4 -4 -4 -4 -4 -3 -2 -1 ---------- Run | Yrd Mat Min Mat Min Exi Min Mat Gar Fac Low Low Dat Pro Fac Fac Fac Ext Cet Arc Hub Res Res Acc Machines Disabled 40 | . . . . . . . 4 . 3 . 1 . . 6 2 9 1 2 2 6 1 . 3 Max in Single Turn 5 | . . . . . . . 4 . 1 . 1 . . 1 1 5 1 1 1 2 1 . 1 Garrison Access 12 | . . . . . . . . . 2 . . . . 2 1 . . . . 1 3 1 2 Network Hub 1 | . . . . . . . . . . . . . . . . . . . . 1 . . . Energy Cycler 2 | . . . . . . . . . . . . . . . . . 1 . . . . . 1 Machines Repaired . | . . . . . . . . . . . . . . . . . . . . . . . . Machines Dismantled 2 | . . . . . . . . . . . . . . . . . . 1 . 1 . . . Machines Sabotaged . | . . . . . . . . . . . . . . . . . . . . . . . . Overloaded Fab Kills . | . . . . . . . . . . . . . . . . . . . . . . . . Hacking | -11 -10 -10 -9 -9 -9 -8 -8 -8 -7 -7 -7 -7 -6 -6 -5 -4 -4 -4 -4 -4 -3 -2 -1 --------- Run | Yrd Mat Min Mat Min Exi Min Mat Gar Fac Low Low Dat Pro Fac Fac Fac Ext Cet Arc Hub Res Res Acc Machines Accessed 109 | . 8 . 10 . 2 . 11 2 13 . 2 4 . 13 13 4 5 1 1 6 4 3 7 Terminals 51 | . 5 . 5 . . . 6 2 4 . . . . 5 4 3 5 1 . 5 . 1 5 Fabricators 11 | . . . . . . . . . 3 . . . . 4 4 . . . . . . . . Repair Stations 10 | . 1 . 2 . . . 2 . 1 . . . . 1 2 1 . . . . . . . Recycling Units 12 | . 2 . 2 . . . 2 . 2 . . . . 1 1 . . . . . 1 1 . Scanalyzers 3 | . . . 1 . . . . . 1 . . . . . 1 . . . . . . . . Garrison Access 13 | . . . . . . . 1 . 2 . . . . 2 1 . . . . 1 3 1 2 Total Hacks 272 | . 18 . 40 . 2 . 33 4 23 . 2 26 . 34 27 5 11 2 6 16 4 7 12 Successful 162 | . 11 . 22 . 2 . 19 1 14 . 2 26 . 23 11 1 6 . 6 5 4 4 5 Failed 109 | . 7 . 18 . . . 14 3 8 . . . . 11 16 4 5 2 . 11 . 3 7 Catastrophic 21 | . . . 3 . . . . . 4 . . . . 3 1 1 1 1 . 3 . 1 3 Database Lockouts 1 | . . . . . . . . . 1 . . . . . . . . . . . . . . Manual 59 | . 5 . 9 . 1 . 12 . 2 . . . . 6 5 . 6 1 . 7 . . 5 Terminals 129 | . 11 . 20 . . . 20 4 7 . . . . 10 11 4 11 2 . 15 . 4 10 Fabricators 25 | . . . . . . . . . 4 . . . . 15 6 . . . . . . . . Repair Stations 31 | . 4 . 9 . . . 6 . 2 . . . . 4 5 1 . . . . . . . Recycling Units 20 | . 3 . 6 . . . 4 . 2 . . . . 1 2 . . . . . 1 1 . Scanalyzers 10 | . . . 5 . . . . . 4 . . . . . 1 . . . . . . . . Garrison Access 21 | . . . . . . . 3 . 4 . . . . 4 2 . . . . 1 3 2 2 Terminal Hacks 81 | . 6 . 8 . 2 . 9 1 1 . 2 26 . 5 4 1 5 . 6 3 . 1 1 Record 14 | . . . . . 1 . . . . . . 5 . . . . 1 . 6 1 . . . Part Schematic 14 | . . . 1 . . . . . . . . 12 . . . . 1 . . . . . . Robot Schematic 6 | . . . . . . . . . . . . 6 . . . . . . . . . . . Robot Analysis 3 | . . . 1 . . . 2 . . . . . . . . . . . . . . . . Prototype ID Bank 11 | . 1 . 3 . . . 1 . . . . 3 . 1 1 . 1 . . . . . . Open Door 2 | . . . . . . . . . . . 2 . . . . . . . . . . . . Open DSF 1 | . . . . . . . . . . . . . . . . 1 . . . . . . . Branch Access Points 4 | . . . . . . . . . 1 . . . . 1 1 . . . . . . . 1 Emergency Access Points 2 | . 1 . . . . . . . . . . . . . 1 . . . . . . . . Terminal Index 1 | . . . . . . . . . . . . . . 1 . . . . . . . . . Alert Level 1 | . . . . . . . 1 . . . . . . . . . . . . . . . . Unreport Threat 4 | . . . . . . . 1 . . . . . . 1 . . 1 . . 1 . . . Locate Traps 8 | . 2 . 1 . . . 2 . . . . . . 1 1 . . . . 1 . . . Hauler Manifests 2 | . 1 . 1 . . . . . . . . . . . . . . . . . . . . Registered Components 2 | . 1 . . . . . 1 . . . . . . . . . . . . . . . . Zone Layout 4 | . . . 1 . . . 1 . . . . . . . . . 1 . . . . 1 . Security Stations 1 | . . . . . . . . 1 . . . . . . . . . . . . . . . Proto ID Catalog 1 | . . . . . 1 . . . . . . . . . . . . . . . . . . Fabricator Hacks 14 | . . . . . . . . . 2 . . . . 11 1 . . . . . . . . Network Status 4 | . . . . . . . . . 2 . . . . 1 1 . . . . . . . . Load Schematic 6 | . . . . . . . . . . . . . . 6 . . . . . . . . . Build 4 | . . . . . . . . . . . . . . 4 . . . . . . . . . Repair Station Hacks 17 | . 2 . 6 . . . 5 . 1 . . . . 1 2 . . . . . . . . Scan Component 10 | . 1 . 3 . . . 3 . 1 . . . . 1 1 . . . . . . . . Repair 7 | . 1 . 3 . . . 2 . . . . . . . 1 . . . . . . . . Recycling Unit Hacks 10 | . 2 . 2 . . . 2 . 2 . . . . . . . . . . . 1 1 . Report Inventory 1 | . . . . . . . . . 1 . . . . . . . . . . . . . . Retrieve Components 9 | . 2 . 2 . . . 2 . 1 . . . . . . . . . . . 1 1 . Scanalyzer 7 | . . . 5 . . . . . 2 . . . . . . . . . . . . . . Insert Component 1 | . . . 1 . . . . . . . . . . . . . . . . . . . . Analyze 2 | . . . 2 . . . . . . . . . . . . . . . . . . . . Retrieve Study 4 | . . . 2 . . . . . 2 . . . . . . . . . . . . . . Garrison Access Hacks 19 | . . . . . . . 1 . 4 . . . . 4 2 . . . . 1 3 2 2 Unlock Access 1 | . . . . . . . 1 . . . . . . . . . . . . . . . . Seal Access 12 | . . . . . . . . . 2 . . . . 2 1 . . . . 1 3 1 2 Coupler Status 6 | . . . . . . . . . 2 . . . . 2 1 . . . . . . 1 . Unauthorized Hacks 14 | . 1 . 1 . . . 2 . 2 . . . . 2 2 . 1 . . 1 . . 2 Terminals 10 | . 1 . 1 . . . 2 . 1 . . . . . 1 . 1 . . 1 . . 2 Botnet 10 | . 1 . 1 . . . 2 . 1 . . . . . 1 . 1 . . 1 . . 2 Fabricators 4 | . . . . . . . . . 1 . . . . 2 1 . . . . . . . . Haulers 1 | . . . . . . . . . 1 . . . . . . . . . . . . . . Download 1 | . . . . . . . . . . . . . . . 1 . . . . . . . . Recompile 2 | . . . . . . . . . . . . . . 2 . . . . . . . . . Repair Stations . | . . . . . . . . . . . . . . . . . . . . . . . . Recycling Units . | . . . . . . . . . . . . . . . . . . . . . . . . Scanalyzers . | . . . . . . . . . . . . . . . . . . . . . . . . Garrison Access . | . . . . . . . . . . . . . . . . . . . . . . . . Data Cores Recovered . | . . . . . . . . . . . . . . . . . . . . . . . . Used . | . . . . . . . . . . . . . . . . . . . . . . . . Hacking Detections 78 | . 7 . 9 . . . 9 2 8 . . . . 10 12 4 3 2 . 5 . 2 5 Full Trace Events 5 | . 1 . . . . . . . 1 . . . . 2 1 . . . . . . . . Feedback Events . | . . . . . . . . . . . . . . . . . . . . . . . . Feedback Blocked . | . . . . . . . . . . . . . . . . . . . . . . . . Robot Schematics Acquired 6 | . . . . . . . . . . . . 6 . . . . . . . . . . . Robots Built . | . . . . . . . . . . . . . . . . . . . . . . . . Authchips . | . . . . . . . . . . . . . . . . . . . . . . . . Time . | . . . . . . . . . . . . . . . . . . . . . . . . Total Robot Build Rating . | . . . . . . . . . . . . . . . . . . . . . . . . Part Schematics Acquired 16 | . . . 2 . . . . . . . . 12 . . 1 . 1 . . . . . . Parts Built 4 | . . . . . . . . . . . . . . 4 . . . . . . . . . Authchips 2 | . . . . . . . . . . . . . . 2 . . . . . . . . . Time 468 | . . . . . . . . . . . . . . 468 . . . . . . . . . Total Part Build Rating 28 | . . . . . . . . . . . . . . 28 . . . . . . . . . Part Studies Acquired 4 | . . . 2 . . . . . 2 . . . . . . . . . . . . . . Parts Repaired 7 | . 1 . 3 . . . 2 . . . . . . . 1 . . . . . . . . Time 248 | . 26 . 90 . . . 70 . . . . . . . 62 . . . . . . . . Parts Recycled . | . . . . . . . . . . . . . . . . . . . . . . . . Recycled Matter . | . . . . . . . . . . . . . . . . . . . . . . . . Retrieved Matter . | . . . . . . . . . . . . . . . . . . . . . . . . Retrieved Components 63 | . 20 . 9 . . . 13 . 10 . . . . . . . . . . . 10 1 . Parts Scanalyzed 1 | . . . 1 . . . . . . . . . . . . . . . . . . . . Part Schematics Acquired 1 | . . . 1 . . . . . . . . . . . . . . . . . . . . Parts Damaged . | . . . . . . . . . . . . . . . . . . . . . . . . Bothacking | -11 -10 -10 -9 -9 -9 -8 -8 -8 -7 -7 -7 -7 -6 -6 -5 -4 -4 -4 -4 -4 -3 -2 -1 ------------ Run | Yrd Mat Min Mat Min Exi Min Mat Gar Fac Low Low Dat Pro Fac Fac Fac Ext Cet Arc Hub Res Res Acc Used RIF Installer 1 | . . . . . . . . 1 . . . . . . . . . . . . . . . Robots Hacked 10 | . . . . . . . . . . . . . . 2 . . 7 . . 1 . . . Non-combat 10 | . . . . . . . . . . . . . . 2 . . 7 . . 1 . . . Combat . | . . . . . . . . . . . . . . . . . . . . . . . . Robot Hacks Applied 15 | . . . . . . . . . . . . . . 2 . . 12 . . 1 . . . parse_system 2 | . . . . . . . . . . . . . . . . . 2 . . . . . . ignore_repairs 8 | . . . . . . . . . . . . . . 1 . . 6 . . 1 . . . randomize_corridors 2 | . . . . . . . . . . . . . . . . . 2 . . . . . . ignore_parts 1 | . . . . . . . . . . . . . . 1 . . . . . . . . . streamctrl_low 2 | . . . . . . . . . . . . . . . . . 2 . . . . . . Relay Couplers Released 10 | . . . . . . . . . 4 . . . . 2 . . . . . . . 1 3 Machine Destruction 7 | . . . . . . . . . 4 . . . . 2 . . . . . . . 1 . Programmers 3 | . . . . . . . . . . . . . . . . . . . . . . . 3 Attached 1 | . . . . . . . . . . . . . . . . . 1 . . . . . . Fabnet Peak Effective % . | . . . . . . . . . . . . . . . . . . . . . . . . Robots Rewired 3 | . . . . . . . . . . . . . . . . . 3 . . . . . . Allies Hacked . | . . . . . . . . . . . . . . . . . . . . . . . . Hacks Repelled . | . . . . . . . . . . . . . . . . . . . . . . . . Allies | -11 -10 -10 -9 -9 -9 -8 -8 -8 -7 -7 -7 -7 -6 -6 -5 -4 -4 -4 -4 -4 -3 -2 -1 -------- Run | Yrd Mat Min Mat Min Exi Min Mat Gar Fac Low Low Dat Pro Fac Fac Fac Ext Cet Arc Hub Res Res Acc Total Allies 13 | . . . . . . . . . . . . . . . . . 8 5 . . . . . Largest Group 11 | . . . . . . . . . . . . . . . . . 6 11 5 3 . . . Highest-Rated Group 804 | . . . . . . . . . . . . . . . . . 364 804 401 267 . . . Highest-Rated Ally 159 | . . . . . . . . . . . . . . . . . 159 159 96 96 . . . Total Orders 55 | . . . . . . . . . . . . . . . . . 54 . 1 . . . . STAY 8 | . . . . . . . . . . . . . . . . . 7 . 1 . . . . FOLLOW 3 | . . . . . . . . . . . . . . . . . 3 . . . . . . TUNNEL 44 | . . . . . . . . . . . . . . . . . 44 . . . . . . Ally Attacks 98 | . . . . . . . . . . . . . . . . . 20 64 14 . . . . Total Damage 4397 | . . . . . . . . . . . . . . . . . 592 3306 499 . . . . Kills 20 | . . . . . . . . . . . . . . . . . 5 12 3 . . . . Allies Corrupted . | . . . . . . . . . . . . . . . . . . . . . . . . Allies Melted 1 | . . . . . . . . . . . . . . . . . . 1 . . . . . Intel | -11 -10 -10 -9 -9 -9 -8 -8 -8 -7 -7 -7 -7 -6 -6 -5 -4 -4 -4 -4 -4 -3 -2 -1 ------- Run | Yrd Mat Min Mat Min Exi Min Mat Gar Fac Low Low Dat Pro Fac Fac Fac Ext Cet Arc Hub Res Res Acc Active Infowar (turns) 16220 | 102 1327 353 1493 210 564 . . . . . 617 . . 2 101 516 1390 925 107 1895 1987 886 3745 Terrain 5104 | 68 . . . . . . . . . . 617 . . 2 . . . . . . 1854 438 2125 Seismic 3982 | 34 1327 353 1493 210 564 . . . . . . . . . . . . . . . 1 . . Jamming 11417 | . . . . . . . . . . . . . . . 101 516 1390 925 107 1895 1852 886 3745 Robot Analysis Total 3 | . . . 1 . . . 2 . . . . . . . . . . . . . . . . Derelict Logs Recovered 3 | . . . . 1 . . . . . 1 . . 1 . . . . . . . . . . Drone Launches . | . . . . . . . . . . . . . . . . . . . . . . . . Drone Recoveries . | . . . . . . . . . . . . . . . . . . . . . . . . Exploration | -11 -10 -10 -9 -9 -9 -8 -8 -8 -7 -7 -7 -7 -6 -6 -5 -4 -4 -4 -4 -4 -3 -2 -1 ------------- Run | Yrd Mat Min Mat Min Exi Min Mat Gar Fac Low Low Dat Pro Fac Fac Fac Ext Cet Arc Hub Res Res Acc Turns Passed 37851 | 187 1773 381 2658 246 1027 343 1949 959 4541 759 1604 227 734 4040 2203 1172 2667 925 755 1895 1987 886 3933 Spaces Moved 15432 | 86 798 213 911 102 427 140 913 460 1825 278 592 91 270 1371 927 423 1039 400 209 786 1065 398 1708 Core 273 | 3 . . . . . . . . . . . . . . . . . . . . . . 270 Treads 15159 | 83 798 213 911 102 427 140 913 460 1825 278 592 91 270 1371 927 423 1039 400 209 786 1065 398 1438 Legs . | . . . . . . . . . . . . . . . . . . . . . . . . Wheels . | . . . . . . . . . . . . . . . . . . . . . . . . Hover . | . . . . . . . . . . . . . . . . . . . . . . . . Flight . | . . . . . . . . . . . . . . . . . . . . . . . . Fastest Speed 50 | 50 160 160 160 240 240 240 155 158 158 242 242 245 245 170 180 165 165 165 160 166 157 157 50 Average Speed 180 | 156 160 160 180 240 240 240 157 158 189 242 243 245 245 194 180 197 165 165 169 179 164 173 146 Slowest Speed 270 | 160 160 160 240 240 240 240 160 158 242 242 245 245 245 270 260 270 165 255 240 255 255 255 255 Overloaded Moves . | . . . . . . . . . . . . . . . . . . . . . . . . Propulsion Burnouts . | . . . . . . . . . . . . . . . . . . . . . . . . Robots Hopped . | . . . . . . . . . . . . . . . . . . . . . . . . Potential Cave-ins 5 | . . . . . . . . . . . . . . . . . 5 . . . . . . Cave-ins Triggered . | . . . . . . . . . . . . . . . . . . . . . . . . Exploration Rate (%) 47 | 4 84 41 55 13 60 30 80 46 41 55 74 68 46 24 28 11 66 77 80 65 30 8 48 Regions Visited 23 Branch Regions 12 Pre-discovered Areas 3 | . . . . 1 1 . . . . . . 1 . . . . . . . . . . . Known Exits Taken 7 | . . . . . . . 1 . 1 . . . . 1 . 1 . . . 1 1 1 . Unknown Exits Taken 15 | 1 1 1 1 1 1 1 . . . 1 1 1 1 . 1 . 1 1 1 . . . . Scrap Searched 7 | . . 1 . . . . . . . 2 3 . 1 . . . . . . . . . . Spaces Dug 329 | . 5 . 38 . . . 17 8 39 . 1 . . 33 33 12 11 . 1 42 16 12 61 Terrain Destroyed 928 | . 9 . 51 . . . 74 31 42 16 26 . 42 68 102 38 40 13 6 101 34 20 215 Melee 89 | . . . . . . . 17 8 39 . 1 . . 21 . . . . . . . . 3 Projectile 545 | . 9 . 51 . . . 2 . 3 5 3 . 2 18 57 29 40 13 6 101 34 20 152 AOE 294 | . . . . . . . 55 23 . 11 22 . 40 29 45 9 . . . . . . 60 Terrain Rammed . | . . . . . . . . . . . . . . . . . . . . . . . . Walls Destroyed . | . . . . . . . . . . . . . . . . . . . . . . . . Machines Disabled . | . . . . . . . . . . . . . . . . . . . . . . . . Actions | -11 -10 -10 -9 -9 -9 -8 -8 -8 -7 -7 -7 -7 -6 -6 -5 -4 -4 -4 -4 -4 -3 -2 -1 --------- Run | Yrd Mat Min Mat Min Exi Min Mat Gar Fac Low Low Dat Pro Fac Fac Fac Ext Cet Arc Hub Res Res Acc Total 23088 | 122 1137 244 1663 104 430 147 1329 593 2664 325 701 96 302 2543 1335 657 1860 622 589 1106 1233 550 2736 Wait 5468 | 13 200 21 560 . 3 7 309 59 587 20 61 . 4 992 284 116 693 164 339 174 57 105 700 Move 15408 | 85 797 212 910 101 426 139 912 458 1824 277 591 90 269 1370 926 422 1038 399 208 785 1064 397 1708 Hop . | . . . . . . . . . . . . . . . . . . . . . . . . Pick Up 181 | 8 20 1 17 1 . . 7 . 36 1 4 . . 12 8 13 3 6 5 10 13 5 11 Fast Attach 104 | 7 1 . 4 . . . 4 3 6 2 . 3 1 8 5 8 . 7 8 4 17 . 16 Attach 55 | 1 2 . 2 . . . 2 . 6 1 1 . 1 4 4 11 . . 2 1 2 2 13 Detach 6 | . . . . . . . . . . . . . . 1 . 3 . . . . . . 2 Swap 300 | . 11 2 38 1 1 . 25 17 45 5 13 . 9 24 13 2 11 7 5 5 8 8 50 Drop 272 | 1 13 2 27 1 . . 21 7 36 2 5 3 1 21 12 13 5 15 12 12 31 4 28 Fire 1082 | 7 89 6 104 . . . 31 35 62 17 25 . 17 79 83 68 78 16 10 105 39 19 192 Melee 125 | . . . . . . . 17 14 56 . 1 . . 31 . . . . . . . . 6 Ram . | . . . . . . . . . . . . . . . . . . . . . . . . Kick . | . . . . . . . . . . . . . . . . . . . . . . . . Crush 32 | . 4 . 1 . . 1 1 . 6 . . . . 1 . 1 . . . 7 2 . 8 Escape Stasis 2 | . . . . . . . . . . . . . . . . . . . . . . . 2 Rewire 32 | . . . . . . . . . . . . . . . . . 32 . . . . . . Trap . | . . . . . . . . . . . . . . . . . . . . . . . . Miscellaneous 21 | . . . . . . . . . . . . . . . . . . 8 . 3 . 10 . Route ------- -11/Scrapyard -10/Materials (discovered 5 exits: *Mat x2 / [*Min x2] / [*Sub]) -10/Mines -9/Materials -9/Mines -9/Exiles (discovered 2 exits: [*Min x2]) -8/Mines -8/Materials (discovered 4 exits: *Fac x3 / Gar) -8/Garrison (discovered 2 exits: *Fac x2) -7/Factory (discovered 3 exits: Sto / *Low x2) -7/Lower Caves -7/Lower Caves (discovered 2 exits: *Fac / *Dat) -7/Data Miner -6/Proximity Caves -6/Factory (discovered 4 exits: *Fac x2 / Low x2) -5/Factory (discovered 4 exits: *Fac x2 / *Upp x2) -4/Factory (discovered 2 exits: [*Upp] / *Ext) -4/Extension (discovered 3 exits: *Res x2 / *Cet) -4/Cetus (discovered 2 exits: *Res / *Arc) -4/Archives (discovered 3 exits: *Res / *Hub x2) -4/Hub_04(d) -3/Research -2/Research -1/Access (discovered 1 exit: Com) History --------- Turn | Location | Event 7 | -11/Scrapyard | Discovered new exit (range 15) 188 | -11/Scrapyard | Entered Materials 259 | -10/Materials | Discovered new exit (range 10) 317 | -10/Materials | Build established: Mutant 513 | -10/Materials | Discovered new exit (range 6) 642 | -10/Materials | Discovered new exit (range 11) 1110 | -10/Materials | Discovered new exit (range 14) 1359 | -10/Materials | Repaired Lgt. Treads 1497 | -10/Materials | Discovered new exit (range 9) 1961 | -10/Materials | Entered Mines 2127 | -10/Mines | Discovered new exit (range 5) 2342 | -10/Mines | Entered Materials 2342 | -9/Materials | Evolved 2 slots: Utility x1, Weapon x1 2788 | -9/Materials | Build established: Scavenger-Tank 2897 | -9/Materials | Discovered new exit (range 13) 2970 | -9/Materials | Repaired Lgt. Treads 4580 | -9/Materials | Repaired Hrd. Light Armor Plating 4888 | -9/Materials | Repaired Imp. Ion Engine 5000 | -9/Materials | Entered Mines 5001 | -9/Mines | Learned location of Storage (-7) 5052 | -9/Mines | Learned location of 1 exit from Materials 5067 | -9/Mines | Deemed a non-threat by the Exiles lab entrance 5069 | -9/Mines | Discovered new exit (range 5) 5139 | -9/Mines | A weapon hastily lodged in a ceiling crevice suddenly fell to the ground 5246 | -9/Mines | Entered Exiles 5278 | -9/Exiles | Discovered new exit (range 15) 5304 | -9/Exiles | Met 8R-AWN 5336 | -9/Exiles | Build established: Tank 5347 | -9/Exiles | Met EX-HEX 5417 | -9/Exiles | Met EX-BIN 5450 | -9/Exiles | Met EX-DEC 5460 | -9/Exiles | Learned location of Zion (-6) 5659 | -9/Exiles | Discovered new exit (range 12) 5980 | -9/Exiles | Aligned with FarCom system 5982 | -9/Exiles | Given EX-Vault access code 6037 | -9/Exiles | Opened EX-Vault 6097 | -9/Exiles | Build established: Scavenger-Tank 6097 | -9/Exiles | Warned to stay clear of 0b10 Research branches 6134 | -9/Exiles | Exiles lab attacked by MAIN.C 6273 | -9/Exiles | Entered Mines 6572 | -8/Mines | Build established: Scavenger-Skirmisher 6579 | -8/Mines | Discovered new exit (range 15) 6616 | -8/Mines | Entered Materials 6616 | -8/Materials | Evolved 2 slots: Propulsion x1, Utility x1 6617 | -8/Materials | Identified exit to Factory 6679 | -8/Materials | Garrison activated, responded to threat 6951 | -8/Materials | Met 7R-MNS 7210 | -8/Materials | Discovered exit to Factory (range 10) 7559 | -8/Materials | Discovered exit to Factory (range 14) 8023 | -8/Materials | Build established: Scavenger-Mutant 8094 | -8/Materials | Destroyed 7 combat bots 8323 | -8/Materials | Repaired Imp. Light Cannon 8458 | -8/Materials | Repaired Adv. Treads 8516 | -8/Materials | Build established: Mutant 8564 | -8/Materials | Identified exit to Garrison 8565 | -8/Materials | Entered Garrison 8683 | -8/Garrison | Triggered checkpoint 8751 | -8/Garrison | Installed Relay Interface Framework 8827 | -8/Garrison | Triggered checkpoint 8834 | -8/Garrison | Triggered checkpoint 8886 | -8/Garrison | Discovered exit to Factory (range 8) 8918 | -8/Garrison | Learned Factory security intel 9329 | -8/Garrison | Triggered checkpoint 9381 | -8/Garrison | Triggered checkpoint 9505 | -8/Garrison | Discovered exit to Factory (range 12) 9524 | -8/Garrison | Entered Factory 9524 | -7/Factory | Evolved 2 slots: Propulsion x1, Utility x1 9566 | -7/Factory | Build established: Skirmisher 9810 | -7/Factory | Discovered new exit (range 7) 10665 | -7/Factory | Build established: Mutant 11329 | -7/Factory | Identified exit to Storage 11329 | -7/Factory | Identified exit to Lower Caves 13280 | -7/Factory | Build established: Skirmisher 13637 | -7/Factory | Central database locked down 13828 | -7/Factory | Build established: Mutant 14065 | -7/Factory | Entered Lower Caves 14127 | -7/Lower Caves | Attracted the attention of an 0b10 checkpoint 14168 | -7/Lower Caves | Learned Factory garrison access intel 14247 | -7/Lower Caves | Spotted B-75 Beast 14365 | -7/Lower Caves | Build established: Gunner 14770 | -7/Lower Caves | Discovered new exit (range 6) 14824 | -7/Lower Caves | Entered another Lower Caves area 14901 | -7/Lower Caves | Discovered new exit (range 5) 15842 | -7/Lower Caves | Attracted the attention of an 0b10 checkpoint 16232 | -7/Lower Caves | Attacked by a delusional Derelict stockpiling parts 16406 | -7/Lower Caves | Discovered new exit (range 9) 16428 | -7/Lower Caves | Entered Data Miner 16430 | -7/Data Miner | Discovered new exit (range 6) 16477 | -7/Data Miner | Met Data Miner 16521 | -7/Data Miner | Learned location of Section 7 (-3) 16521 | -7/Data Miner | Acquired the access code to Warlord's prototype stash 16560 | -7/Data Miner | Received God Mode back door access code from Data Miner 16655 | -7/Data Miner | Entered Proximity Caves 17038 | -6/Proximity Caves | Attracted the attention of an 0b10 checkpoint 17313 | -6/Proximity Caves | Discovered new exit (range 8) 17389 | -6/Proximity Caves | Entered Factory 17389 | -6/Factory | Evolved 2 slots: Utility x2 17390 | -6/Factory | Loaded intel: 4 garrison access locations 17737 | -6/Factory | Watched by a mysterious "MATRIX" hacker 17808 | -6/Factory | Build established: Mutant 18146 | -6/Factory | Discovered new exit (range 7) 18182 | -6/Factory | Identified exit to Factory 18331 | -6/Factory | Fabricated Hvy. Siege Treads (x1) 18709 | -6/Factory | Build established: Tank 18911 | -6/Factory | Identified exit to Lower Caves 19907 | -6/Factory | Incoming investigation squad redirected 20272 | -6/Factory | Discovered exit to Factory (range 10) 20334 | -6/Factory | Build established: Mutant 20911 | -6/Factory | Build established: Tank 21098 | -6/Factory | Fabricated Hvy. Siege Treads (x1) 21220 | -6/Factory | Fabricated Hvy. Siege Treads (x1) 21402 | -6/Factory | Fabricated Hvy. Siege Treads (x1) 21429 | -6/Factory | Entered another Factory area 21429 | -5/Factory | Evolved 2 slots: Power x1, Utility x1 21506 | -5/Factory | Identified exit to Upper Caves 22404 | -5/Factory | Repaired Hvy. Siege Treads 22644 | -5/Factory | Discovered new exit (range 15) 22732 | -5/Factory | Destroyed 9 combat bots 23529 | -5/Factory | First assault squad dispatched 23606 | -5/Factory | Discovered new exit (range 10) 23632 | -5/Factory | Entered another Factory area 23632 | -4/Factory | Evolved 2 slots: Propulsion x1, Weapon x1 23633 | -4/Factory | Identified exit to Extension 23660 | -4/Factory | Lost 5 parts (1p1n2u1w) 23837 | -4/Factory | Identified exit to DSF 23848 | -4/Factory | Discovered new exit (range 15) 24683 | -4/Factory | System corruption reached 10% 24804 | -4/Factory | Entered Extension 25118 | -4/Extension | Rescued a captive Derelict 25672 | -4/Extension | Build established: Scavenger-Tank 27043 | -4/Extension | Unchained authorized (V4-D3R) 27050 | -4/Extension | Energy Cycler disabled 27050 | -4/Extension | Rescued a captive Derelict 27051 | -4/Extension | Rescued a captive Derelict 27052 | -4/Extension | Rescued a captive Derelict 27054 | -4/Extension | Rescued a captive Derelict 27065 | -4/Extension | Rescued A7 27083 | -4/Extension | Exiles provided nearest exit location to -3/Research 27310 | -4/Extension | Build established: Tank 27441 | -4/Extension | Discovered exit to Research (range 10) 27442 | -4/Extension | Discovered new exit (range 6) 27471 | -4/Extension | Entered Cetus 27471 | -4/Cetus | Accompanied by 6 allies (A7) 27476 | -4/Cetus | Acquired a Cetus Manufacturing Module code from A7 27491 | -4/Cetus | Spotted Cetus Guard 27491 | -4/Cetus | Spotted Cetus Guard 27493 | -4/Cetus | Spotted Cetus Guard 27493 | -4/Cetus | Spotted Cetus Guard 27500 | -4/Cetus | Destroyed Cetus Guard 27507 | -4/Cetus | Destroyed Cetus Guard 27510 | -4/Cetus | Allies destroyed Cetus Guard 27510 | -4/Cetus | Destroyed Cetus Guard 27600 | -4/Cetus | Started Cetus Manufacturing Module 27625 | -4/Cetus | Manufactured an Enhanced Grunt 27650 | -4/Cetus | Manufactured an Enhanced Grunt 27675 | -4/Cetus | Manufactured an Enhanced Grunt 27700 | -4/Cetus | Manufactured an Enhanced Grunt 27725 | -4/Cetus | Manufactured an Enhanced Grunt 27839 | -4/Cetus | Discovered new exit (range 15) 27869 | -4/Cetus | Spotted Cetus Guard 27869 | -4/Cetus | Spotted Cetus Guard 27871 | -4/Cetus | Spotted Cetus Guard 27871 | -4/Cetus | Spotted Cetus Guard 27880 | -4/Cetus | Allies destroyed Cetus Guard 27886 | -4/Cetus | Destroyed Cetus Guard 27898 | -4/Cetus | Allies destroyed Cetus Guard 27900 | -4/Cetus | Destroyed Cetus Guard 27915 | -4/Cetus | Discovered exit to Research (range 16) 27925 | -4/Cetus | Met Revision 17 28221 | -4/Cetus | Security sweep announced 28231 | -4/Cetus | Build established: Scavenger-Tank 28296 | -4/Cetus | Lost 3 allies 28396 | -4/Cetus | Entered Archives 28396 | -4/Archives | Accompanied by 5 allies 28616 | -4/Archives | Discovered new exit (range 16) 28629 | -4/Archives | Unable to access archive contents 28632 | -4/Archives | Discovered new exit (range 16) 28710 | -4/Archives | Unable to access archive contents 28715 | -4/Archives | Discovered exit to Research (range 16) 29151 | -4/Archives | Entered Hub_04(d) 29151 | -4/Hub_04(d) | Accompanied by 3 allies 29692 | -4/Hub_04(d) | Spotted B-86 Titan 29702 | -4/Hub_04(d) | Destroyed B-86 Titan 30639 | -4/Hub_04(d) | Discovered exit to Research (range 12) 30931 | -4/Hub_04(d) | Network Hub disabled 31046 | -4/Hub_04(d) | Entered Research 31046 | -3/Research | Evolved 2 slots: Propulsion x1, Utility x1 31165 | -3/Research | Discovered new exit (range 12) 31246 | -3/Research | Revision forces began assault on 0b10 31263 | -3/Research | Met up with Revision 17++ 31421 | -3/Research | Found Gamma Bomb Array 31451 | -3/Research | Found Unknown Launcher 31451 | -3/Research | Identified Fusion Bomb Launcher 31746 | -3/Research | Research terminal network offline 31794 | -3/Research | Identified exit to Research 32770 | -3/Research | Spotted Striker 32774 | -3/Research | Spotted Striker 32779 | -3/Research | Destroyed Striker 32782 | -3/Research | Destroyed Striker 32787 | -3/Research | Spotted Striker 32790 | -3/Research | Destroyed Striker 32801 | -3/Research | Spotted Striker 32812 | -3/Research | Destroyed Striker 32841 | -3/Research | Spotted Striker 32899 | -3/Research | Spotted Striker 32902 | -3/Research | Destroyed Striker 32913 | -3/Research | Lost 3 allies 33033 | -3/Research | Entered another Research area 33033 | -2/Research | Evolved 2 slots: Power x1, Utility x1 33779 | -2/Research | Build established: Scavenger-Skirmisher 33812 | -2/Research | Discovered new exit (range 9) 33903 | -2/Research | Identified exit to Access 33919 | -2/Research | Entered Access 33919 | -1/Access | Evolved 2 slots: Utility x2 34100 | -1/Access | Build established: Scavenger-Tank 34924 | -1/Access | Identified exit to Command 35835 | -1/Access | System corruption reached 10% 35896 | -1/Access | Lost 4 parts (2p1n1u) 36919 | -1/Access | First assault squad dispatched 36949 | -1/Access | Spotted B-99 Colossus 37438 | -1/Access | Build established: Skirmisher 37525 | -1/Access | System corruption reached 30% 37666 | -1/Access | Incoming assault squad redirected 37737 | -1/Access | Lost 10 parts (2p4n4u) 37821 | -1/Access | Energy Cycler disabled 37825 | -1/Access | Core integrity fell below 50% 37847 | -1/Access | Core integrity fell below 20% 37852 | -1/Access | Destroyed by P-80 Master with Gamma Rifle Last Messages --------------- 37821_ S-43 Plague destroyed. 37821_ K-01 Serf destroyed. 37821_ S-43 Plague destroyed. 37823_ Biometal Medium Treads destroyed. 37824_ S-43 Plague destroyed. 37826_ Acquired Wheel. 37827_ Wheel destroyed. 37828_ P-80 Master resets S-43 Plague, system corruption cleaned. 37829_ U-05 Engineer lays Concrete. 37830_ K-01 Serf collects debris. 37831_ X|LNP=8DXM G9CDMNMGK56 6 37845_ P-80 Master resets A-15 Conveyor, system corruption cleaned. 37846_ OKTML2IZ